[Event "Late-Titled-Tuesday-Blitz-May-14-2024"]
[Site "Chess.com"]
[Date "2024.05.14"]
[Round "6"]
[White "patzer-reloaded"]
[Black "Romkachess"]
[Result "0-1"]
[WhiteElo "2380"]
[BlackElo "2583"]
[TimeControl "180+1"]
[EndTime "15:07:13 PDT"]
[Termination "Romkachess won on time"]

1. d3 {[%clk 0:03:00.9]} 1... e5 {[%clk 0:02:18.5]} 2. Nf3 {[%clk 0:02:58.9]}
2... Nc6 {[%clk 0:02:17.7]} 3. g3 {[%clk 0:02:59.2]} 3... Nf6 {[%clk 0:02:18.1]}
4. Bg2 {[%clk 0:02:59.5]} 4... Bd6 {[%clk 0:02:18.6]} 5. O-O {[%clk 0:02:56.5]}
5... O-O {[%clk 0:02:18.9]} 6. c4 {[%clk 0:02:51]} 6... Re8 {[%clk 0:02:18.5]}
7. Nc3 {[%clk 0:02:49.5]} 7... Bf8 {[%clk 0:02:18.9]} 8. Nd5 {[%clk 0:02:45.6]}
8... Nxd5 {[%clk 0:02:07.3]} 9. cxd5 {[%clk 0:02:44.9]} 9... Nb4 {[%clk
0:02:05.5]} 10. e4 {[%clk 0:02:40.7]} 10... d6 {[%clk 0:02:01.2]} 11. a3 {[%clk
0:02:40.5]} 11... Na6 {[%clk 0:02:01.1]} 12. d4 {[%clk 0:02:39.2]} 12... exd4
{[%clk 0:02:00.4]} 13. Nxd4 {[%clk 0:02:38.5]} 13... Nc5 {[%clk 0:02:01]} 14.
Re1 {[%clk 0:02:36.9]} 14... a5 {[%clk 0:02:00.8]} 15. b3 {[%clk 0:02:23.8]}
15... g6 {[%clk 0:01:59.7]} 16. Bb2 {[%clk 0:02:01.1]} 16... Bg7 {[%clk
0:01:59.8]} 17. Qd2 {[%clk 0:02:00.7]} 17... Qf6 {[%clk 0:01:46.1]} 18. Rab1
{[%clk 0:01:54.4]} 18... Qe7 {[%clk 0:01:29.2]} 19. b4 {[%clk 0:01:50.3]} 19...
axb4 {[%clk 0:01:27.4]} 20. axb4 {[%clk 0:01:51.2]} 20... Na4 {[%clk 0:01:28.2]}
21. Ba1 {[%clk 0:01:50.8]} 21... Bd7 {[%clk 0:01:25.2]} 22. Rbc1 {[%clk
0:01:45]} 22... Rec8 {[%clk 0:01:20.9]} 23. Rc2 {[%clk 0:01:20.8]} 23... Nb6
{[%clk 0:01:13.4]} 24. Rec1 {[%clk 0:01:10.4]} 24... Ba4 {[%clk 0:01:13.8]} 25.
Ra2 {[%clk 0:01:05.8]} 25... h5 {[%clk 0:01:03.4]} 26. b5 {[%clk 0:01:00.6]}
26... h4 {[%clk 0:00:43.2]} 27. Qb4 {[%clk 0:00:59.8]} 27... Qg5 {[%clk
0:00:28.4]} 28. f4 {[%clk 0:00:49.6]} 28... Qg4 {[%clk 0:00:27.3]} 29. Bf3
{[%clk 0:00:49.2]} 29... Qh3 {[%clk 0:00:23]} 30. Qe1 {[%clk 0:00:27]} 30...
hxg3 {[%clk 0:00:22.5]} 31. Qxg3 {[%clk 0:00:25.8]} 31... Qxg3+ {[%clk
0:00:13.3]} 32. hxg3 {[%clk 0:00:26.7]} 32... Nd7 {[%clk 0:00:05.5]} 33. Bc3
{[%clk 0:00:24]} 33... Nc5 {[%clk 0:00:05.5]} 34. Rca1 {[%clk 0:00:22.5]} 34...
Nb3 {[%clk 0:00:03.2]} 35. Rxa4 {[%clk 0:00:21]} 35... Nxa1 {[%clk 0:00:03]} 36.
Rxa1 {[%clk 0:00:21]} 36... Rxa1+ {[%clk 0:00:02.4]} 37. Bxa1 {[%clk 0:00:21.2]}
37... Ra8 {[%clk 0:00:03.3]} 38. Bc3 {[%clk 0:00:21.2]} 38... Ra3 {[%clk
0:00:03.9]} 39. e5 {[%clk 0:00:15.1]} 39... Rxc3 {[%clk 0:00:03.7]} 40. Kf2
{[%clk 0:00:11]} 40... dxe5 {[%clk 0:00:04.2]} 41. Ne2 {[%clk 0:00:10.1]} 41...
Rc2 {[%clk 0:00:04.4]} 42. d6 {[%clk 0:00:08.8]} 42... cxd6 {[%clk 0:00:04.4]}
43. Bxb7 {[%clk 0:00:08.7]} 43... exf4 {[%clk 0:00:04.7]} 44. gxf4 {[%clk
0:00:08.3]} 44... Rb2 {[%clk 0:00:05.6]} 45. Bc6 {[%clk 0:00:08.1]} 45... Bd4+
{[%clk 0:00:05.7]} 46. Kf3 {[%clk 0:00:08.4]} 46... Bc5 {[%clk 0:00:06.6]} 47.
Ng3 {[%clk 0:00:06.7]} 47... f5 {[%clk 0:00:06.9]} 48. Ne2 {[%clk 0:00:04.9]}
48... Kg7 {[%clk 0:00:07.4]} 49. Bd7 {[%clk 0:00:04.2]} 49... Rb3+ {[%clk
0:00:07.7]} 50. Kg2 {[%clk 0:00:03.6]} 50... Kf6 {[%clk 0:00:08.1]} 51. Bc6
{[%clk 0:00:03.2]} 51... g5 {[%clk 0:00:08.4]} 52. Kf1 {[%clk 0:00:03]} 52...
Rb1+ {[%clk 0:00:08.2]} 53. Kg2 {[%clk 0:00:02.8]} 53... Rb2 {[%clk 0:00:09.1]}
54. Kf3 {[%clk 0:00:02.9]} 54... g4+ {[%clk 0:00:09.4]} 55. Kg3 {[%clk
0:00:02.5]} 55... Rxe2 {[%clk 0:00:09.9]} 56. b6 {[%clk 0:00:03]} 56... Rb2
{[%clk 0:00:10.4]} 57. b7 {[%clk 0:00:02.6]} 57... Ba7 {[%clk 0:00:08]} 58. b8=Q
{[%clk 0:00:01.5]} 58... Bxb8 {[%clk 0:00:08.9]} 59. Bh1 {[%clk 0:00:00.2]}
59... Rb4 {[%clk 0:00:09.2]} 0-1

[Event "Late-Titled-Tuesday-Blitz-May-14-2024"]
[Site "Chess.com"]
[Date "2024.05.14"]
[Round "6"]
[White "ChessSwole"]
[Black "Mikhail_Bryakin"]
[Result "0-1"]
[WhiteElo "2620"]
[BlackElo "2850"]
[TimeControl "180+1"]
[EndTime "15:07:15 PDT"]
[Termination "Mikhail_Bryakin won on time"]

1. d4 {[%clk 0:03:00.9]} 1... Nf6 {[%clk 0:02:50.9]} 2. Nf3 {[%clk 0:02:59.8]}
2... g6 {[%clk 0:02:51.1]} 3. Nbd2 {[%clk 0:02:58]} 3... d5 {[%clk 0:02:49.6]}
4. e3 {[%clk 0:02:57.2]} 4... Bg7 {[%clk 0:02:49.3]} 5. b4 {[%clk 0:02:57.9]}
5... O-O {[%clk 0:02:48.7]} 6. Bb2 {[%clk 0:02:57.4]} 6... a5 {[%clk 0:02:48.7]}
7. b5 {[%clk 0:02:57.7]} 7... Nbd7 {[%clk 0:02:46.5]} 8. c4 {[%clk 0:02:56.1]}
8... c6 {[%clk 0:02:41]} 9. a4 {[%clk 0:02:52.3]} 9... Ne4 {[%clk 0:02:38.5]}
10. Be2 {[%clk 0:02:29.9]} 10... f5 {[%clk 0:02:31.2]} 11. O-O {[%clk
0:02:28.4]} 11... e6 {[%clk 0:02:30.4]} 12. Rc1 {[%clk 0:02:22.6]} 12... Re8
{[%clk 0:02:28.8]} 13. Ne1 {[%clk 0:02:11.3]} 13... Nb6 {[%clk 0:02:28.2]} 14.
c5 {[%clk 0:02:07.1]} 14... Nd7 {[%clk 0:02:27.5]} 15. Nd3 {[%clk 0:02:07]}
15... e5 {[%clk 0:02:26.8]} 16. dxe5 {[%clk 0:02:05.1]} 16... Nxe5 {[%clk
0:02:26.2]} 17. Nxe5 {[%clk 0:02:03.6]} 17... Bxe5 {[%clk 0:02:26.5]} 18. Bxe5
{[%clk 0:02:04.1]} 18... Rxe5 {[%clk 0:02:26]} 19. Nf3 {[%clk 0:02:03.6]} 19...
Re7 {[%clk 0:02:24.5]} 20. Qd4 {[%clk 0:01:57.5]} 20... Bd7 {[%clk 0:02:22.6]}
21. Rb1 {[%clk 0:01:54]} 21... Qe8 {[%clk 0:02:21.8]} 22. bxc6 {[%clk
0:01:46.4]} 22... Bxc6 {[%clk 0:02:21.3]} 23. Bb5 {[%clk 0:01:46.5]} 23... Rc8
{[%clk 0:02:18.6]} 24. Bxc6 {[%clk 0:01:44.4]} 24... bxc6 {[%clk 0:02:19.5]} 25.
Rb6 {[%clk 0:01:43.1]} 25... Rec7 {[%clk 0:02:19.2]} 26. Rfb1 {[%clk 0:01:41.8]}
26... Qe7 {[%clk 0:02:19.6]} 27. Rc1 {[%clk 0:01:40.2]} 27... Rb7 {[%clk
0:02:19.6]} 28. h4 {[%clk 0:01:30.9]} 28... Rbc7 {[%clk 0:02:16]} 29. Ra6 {[%clk
0:01:27]} 29... Rb7 {[%clk 0:02:10.1]} 30. Rxa5 {[%clk 0:01:17.7]} 30... Rcb8
{[%clk 0:02:02.6]} 31. Qe5 {[%clk 0:01:10.7]} 31... Qd7 {[%clk 0:01:42.3]} 32.
g3 {[%clk 0:00:58.1]} 32... Rb2 {[%clk 0:01:37.5]} 33. Ra8 {[%clk 0:00:48.5]}
33... Rxa8 {[%clk 0:01:30]} 34. Qxb2 {[%clk 0:00:49.1]} 34... Rxa4 {[%clk
0:01:29.5]} 35. Qb8+ {[%clk 0:00:48.3]} 35... Kg7 {[%clk 0:01:28.6]} 36. Rb1
{[%clk 0:00:47.5]} 36... Ra7 {[%clk 0:01:28.1]} 37. Qe5+ {[%clk 0:00:43]} 37...
Kh6 {[%clk 0:01:25.7]} 38. Ng5 {[%clk 0:00:28.7]} 38... Qc7 {[%clk 0:01:15.4]}
39. Qe8 {[%clk 0:00:20]} 39... Nxg5 {[%clk 0:01:14.9]} 40. hxg5+ {[%clk
0:00:20.9]} 40... Kxg5 {[%clk 0:01:15.6]} 41. Kg2 {[%clk 0:00:19]} 41... Qd7
{[%clk 0:01:12.2]} 42. Qe5 {[%clk 0:00:16.9]} 42... Qe7 {[%clk 0:01:02.8]} 43.
Qf4+ {[%clk 0:00:15.2]} 43... Kf6 {[%clk 0:01:02.7]} 44. Rb6 {[%clk 0:00:15.5]}
44... Rc7 {[%clk 0:01:01.6]} 45. Qh4+ {[%clk 0:00:13.7]} 45... Ke6 {[%clk
0:01:01.7]} 46. Qf4 {[%clk 0:00:10.9]} 46... Qd8 {[%clk 0:00:59.1]} 47. Qh6
{[%clk 0:00:09.4]} 47... Qf6 {[%clk 0:00:55.4]} 48. Qf4 {[%clk 0:00:09.1]} 48...
Qe5 {[%clk 0:00:55.7]} 49. Qh6 {[%clk 0:00:07.4]} 49... Qe4+ {[%clk 0:00:55.7]}
50. Kh2 {[%clk 0:00:08.1]} 50... Qf3 {[%clk 0:00:53.1]} 51. Kg1 {[%clk
0:00:08.5]} 51... d4 {[%clk 0:00:50.2]} 52. Qf8 {[%clk 0:00:06.3]} 52... Ra7
{[%clk 0:00:35.6]} 53. Qd6+ {[%clk 0:00:06]} 53... Kf7 {[%clk 0:00:35.1]} 54.
Rb1 {[%clk 0:00:02.9]} 54... dxe3 {[%clk 0:00:33.2]} 55. fxe3 {[%clk 0:00:01.8]}
55... Qxe3+ {[%clk 0:00:31.8]} 56. Kh2 {[%clk 0:00:02.5]} 56... Qh6+ {[%clk
0:00:29.8]} 57. Kg1 {[%clk 0:00:02.4]} 57... Qe3+ {[%clk 0:00:28.2]} 58. Kf1
{[%clk 0:00:03]} 58... Re7 {[%clk 0:00:24.2]} 59. Rb2 {[%clk 0:00:01.1]} 59...
Qc1+ {[%clk 0:00:22]} 60. Kg2 {[%clk 0:00:01.7]} 60... Qxb2+ {[%clk 0:00:22]}
0-1

[Event "Late-Titled-Tuesday-Blitz-May-14-2024"]
[Site "Chess.com"]
[Date "2024.05.14"]
[Round "6"]
[White "gamboajp"]
[Black "RianKapriaga"]
[Result "1/2-1/2"]
[WhiteElo "2030"]
[BlackElo "2282"]
[TimeControl "180+1"]
[EndTime "15:07:16 PDT"]
[Termination "Game drawn by stalemate"]

1. c4 {[%clk 0:03:00.9]} 1... e5 {[%clk 0:02:57]} 2. Nc3 {[%clk 0:03:00.2]} 2...
Nc6 {[%clk 0:02:57.4]} 3. g3 {[%clk 0:02:59.5]} 3... d6 {[%clk 0:02:57.7]} 4.
Bg2 {[%clk 0:02:59.7]} 4... g6 {[%clk 0:02:58.2]} 5. d3 {[%clk 0:02:59.7]} 5...
Bg7 {[%clk 0:02:58.6]} 6. e4 {[%clk 0:03:00.3]} 6... Be6 {[%clk 0:02:56.9]} 7.
Nge2 {[%clk 0:02:59.9]} 7... Qd7 {[%clk 0:02:56.7]} 8. h3 {[%clk 0:03:00.5]}
8... h5 {[%clk 0:02:56.7]} 9. Be3 {[%clk 0:02:59.6]} 9... f5 {[%clk 0:02:52.8]}
10. Qd2 {[%clk 0:02:54.6]} 10... Nge7 {[%clk 0:02:51.2]} 11. f4 {[%clk
0:02:54.6]} 11... fxe4 {[%clk 0:02:47.6]} 12. Nxe4 {[%clk 0:02:49.5]} 12... exf4
{[%clk 0:02:41.8]} 13. Nxf4 {[%clk 0:02:40.3]} 13... O-O-O {[%clk 0:02:37.8]}
14. Nxe6 {[%clk 0:02:36.2]} 14... Qxe6 {[%clk 0:02:37]} 15. O-O-O {[%clk
0:02:36.2]} 15... Kb8 {[%clk 0:02:36]} 16. Kb1 {[%clk 0:02:18.1]} 16... Nf5
{[%clk 0:02:35]} 17. Bf2 {[%clk 0:02:11.9]} 17... Rhf8 {[%clk 0:02:30.8]} 18.
Rhe1 {[%clk 0:02:10.2]} 18... Qg8 {[%clk 0:02:21.1]} 19. Ng5 {[%clk 0:01:59.2]}
19... Nfd4 {[%clk 0:02:15.2]} 20. Bxc6 {[%clk 0:01:58.8]} 20... Nxc6 {[%clk
0:02:10.7]} 21. Ne6 {[%clk 0:01:54.8]} 21... a6 {[%clk 0:02:00.5]} 22. d4 {[%clk
0:01:29.5]} 22... Qf7 {[%clk 0:01:58.9]} 23. Nxf8 {[%clk 0:01:27.8]} 23... Rxf8
{[%clk 0:01:58.1]} 24. Be3 {[%clk 0:01:27.7]} 24... Qf5+ {[%clk 0:01:56.6]} 25.
Ka1 {[%clk 0:01:26.6]} 25... Qxh3 {[%clk 0:01:55]} 26. d5 {[%clk 0:01:09.3]}
26... Ne5 {[%clk 0:01:52.7]} 27. Qd4 {[%clk 0:01:09.4]} 27... b6 {[%clk
0:01:49.9]} 28. Bf4 {[%clk 0:01:04.1]} 28... Rf5 {[%clk 0:01:43.5]} 29. Qe4
{[%clk 0:01:00.5]} 29... Qg4 {[%clk 0:01:34]} 30. Bxe5 {[%clk 0:00:57.6]} 30...
Qxe4 {[%clk 0:01:28.3]} 31. Rxe4 {[%clk 0:00:57.7]} 31... Bxe5 {[%clk
0:01:28.9]} 32. g4 {[%clk 0:00:57]} 32... Rf2 {[%clk 0:01:28.1]} 33. Rxe5 {[%clk
0:00:52.9]} 33... dxe5 {[%clk 0:01:25.7]} 34. gxh5 {[%clk 0:00:53.3]} 34... gxh5
{[%clk 0:01:25.7]} 35. Rh1 {[%clk 0:00:51.5]} 35... Rf6 {[%clk 0:01:22.6]} 36.
b3 {[%clk 0:00:49.7]} 36... Rh6 {[%clk 0:01:22.3]} 37. Rh4 {[%clk 0:00:50.2]}
37... Kc8 {[%clk 0:01:20.9]} 38. Kb2 {[%clk 0:00:50.9]} 38... Kd7 {[%clk
0:01:20.8]} 39. Kc3 {[%clk 0:00:51.5]} 39... Ke7 {[%clk 0:01:20.4]} 40. Kd3
{[%clk 0:00:52.1]} 40... Rh8 {[%clk 0:01:11.3]} 41. Ke4 {[%clk 0:00:51.8]} 41...
Kf6 {[%clk 0:01:11.4]} 42. b4 {[%clk 0:00:51.2]} 42... Rh7 {[%clk 0:01:08.7]}
43. a4 {[%clk 0:00:48.5]} 43... a5 {[%clk 0:01:07.5]} 44. bxa5 {[%clk
0:00:47.7]} 44... bxa5 {[%clk 0:01:08.4]} 45. c5 {[%clk 0:00:45]} 45... Rh8
{[%clk 0:01:08.1]} 46. Rh1 {[%clk 0:00:37.9]} 46... h4 {[%clk 0:00:55.4]} 47.
Rf1+ {[%clk 0:00:37.7]} 47... Kg5 {[%clk 0:00:51.8]} 48. Kxe5 {[%clk 0:00:38.1]}
48... Re8+ {[%clk 0:00:47.7]} 49. Kd4 {[%clk 0:00:38]} 49... h3 {[%clk
0:00:46.6]} 50. d6 {[%clk 0:00:36.2]} 50... cxd6 {[%clk 0:00:38.6]} 51. cxd6
{[%clk 0:00:36.6]} 51... h2 {[%clk 0:00:33.5]} 52. Rh1 {[%clk 0:00:35.1]} 52...
Re2 {[%clk 0:00:32.2]} 53. Kc5 {[%clk 0:00:32.5]} 53... Kf6 {[%clk 0:00:31.5]}
54. Kb6 {[%clk 0:00:27.7]} 54... Ke6 {[%clk 0:00:30.8]} 55. Kxa5 {[%clk
0:00:28]} 55... Kxd6 {[%clk 0:00:30.8]} 56. Kb6 {[%clk 0:00:28.5]} 56... Rb2+
{[%clk 0:00:29.9]} 57. Ka6 {[%clk 0:00:27.8]} 57... Rc2 {[%clk 0:00:28.7]} 58.
a5 {[%clk 0:00:27.9]} 58... Kc7 {[%clk 0:00:25.3]} 59. Ka7 {[%clk 0:00:27.3]}
59... Kc8 {[%clk 0:00:19.2]} 60. a6 {[%clk 0:00:27.6]} 60... Kc7 {[%clk
0:00:18.8]} 61. Ka8 {[%clk 0:00:28.1]} 61... Kc8 {[%clk 0:00:18.9]} 62. a7
{[%clk 0:00:28.5]} 62... Kc7 {[%clk 0:00:19]} 63. Rxh2 {[%clk 0:00:28.3]} 63...
Rxh2 {[%clk 0:00:17.4]} 1/2-1/2

[Event "Late-Titled-Tuesday-Blitz-May-14-2024"]
[Site "Chess.com"]
[Date "2024.05.14"]
[Round "6"]
[White "RantomOpening"]
[Black "Aygehovit1992"]
[Result "0-1"]
[WhiteElo "2584"]
[BlackElo "2842"]
[TimeControl "180+1"]
[EndTime "15:07:23 PDT"]
[Termination "Aygehovit1992 won on time"]

1. c4 {[%clk 0:03:00.6]} 1... g6 {[%clk 0:02:59.6]} 2. Nf3 {[%clk 0:03:00.9]}
2... Bg7 {[%clk 0:03:00.5]} 3. e4 {[%clk 0:03:01.2]} 3... e5 {[%clk 0:02:59.5]}
4. d4 {[%clk 0:03:01.3]} 4... exd4 {[%clk 0:02:58.5]} 5. Nxd4 {[%clk 0:03:02.2]}
5... Ne7 {[%clk 0:02:58.7]} 6. Nc3 {[%clk 0:02:59]} 6... O-O {[%clk 0:02:57]} 7.
Be3 {[%clk 0:02:58.8]} 7... Nbc6 {[%clk 0:02:57.5]} 8. h4 {[%clk 0:02:57.2]}
8... f5 {[%clk 0:02:54.1]} 9. exf5 {[%clk 0:02:45.3]} 9... Bxd4 {[%clk
0:02:52.7]} 10. Bxd4 {[%clk 0:02:45]} 10... Nxf5 {[%clk 0:02:52.3]} 11. Bc5
{[%clk 0:02:34.5]} 11... d6 {[%clk 0:02:52.3]} 12. Ba3 {[%clk 0:02:31.8]} 12...
Re8+ {[%clk 0:02:50.4]} 13. Be2 {[%clk 0:02:31]} 13... Ncd4 {[%clk 0:02:49.1]}
14. O-O {[%clk 0:02:28.8]} 14... Nxe2+ {[%clk 0:02:39.9]} 15. Nxe2 {[%clk
0:02:29.7]} 15... Qxh4 {[%clk 0:02:40.1]} 16. Re1 {[%clk 0:02:22.2]} 16... Qxc4
{[%clk 0:02:33.5]} 17. b3 {[%clk 0:02:21.6]} 17... Qf7 {[%clk 0:02:33.6]} 18.
Bb2 {[%clk 0:02:21]} 18... Bd7 {[%clk 0:02:23.9]} 19. Qd2 {[%clk 0:02:16.9]}
19... Bc6 {[%clk 0:02:01.7]} 20. Nd4 {[%clk 0:02:06.3]} 20... Qd5 {[%clk
0:01:53.8]} 21. f3 {[%clk 0:01:25.7]} 21... Rxe1+ {[%clk 0:01:47.3]} 22. Rxe1
{[%clk 0:01:25.2]} 22... Re8 {[%clk 0:01:47.6]} 23. Rxe8+ {[%clk 0:00:57]} 23...
Bxe8 {[%clk 0:01:48.5]} 24. Qg5 {[%clk 0:00:54]} 24... Kf7 {[%clk 0:00:21.9]}
25. Nc6 {[%clk 0:00:14.8]} 25... Qc5+ {[%clk 0:00:11.4]} 26. Bd4 {[%clk
0:00:07.8]} 26... Nxd4 {[%clk 0:00:08.1]} 27. Qe7+ {[%clk 0:00:05.8]} 27... Kg8
{[%clk 0:00:08]} 28. Qxe8+ {[%clk 0:00:04.8]} 28... Kg7 {[%clk 0:00:08.5]} 29.
Qe7+ {[%clk 0:00:04.5]} 29... Kh6 {[%clk 0:00:07.3]} 30. Qh4+ {[%clk 0:00:05]}
30... Kg7 {[%clk 0:00:04.5]} 31. Qxd4+ {[%clk 0:00:05.4]} 31... Qxd4+ {[%clk
0:00:04.8]} 32. Nxd4 {[%clk 0:00:06.3]} 32... Kf7 {[%clk 0:00:04.9]} 33. Kf2
{[%clk 0:00:06.1]} 33... a6 {[%clk 0:00:04.7]} 34. Ke3 {[%clk 0:00:06.2]} 34...
c5 {[%clk 0:00:05.3]} 35. Ne2 {[%clk 0:00:05.9]} 35... Ke6 {[%clk 0:00:05.5]}
36. Nf4+ {[%clk 0:00:06.1]} 36... Ke5 {[%clk 0:00:05.6]} 37. Nd3+ {[%clk
0:00:06.5]} 37... Kd5 {[%clk 0:00:05.1]} 38. Nf4+ {[%clk 0:00:05.9]} 38... Ke5
{[%clk 0:00:05.1]} 39. Ne2 {[%clk 0:00:06.1]} 39... b5 {[%clk 0:00:05.2]} 40.
Nc3 {[%clk 0:00:04.7]} 40... d5 {[%clk 0:00:04.7]} 41. Ne2 {[%clk 0:00:03.7]}
41... d4+ {[%clk 0:00:05.2]} 42. Kd3 {[%clk 0:00:04.1]} 42... a5 {[%clk
0:00:03.9]} 43. g3 {[%clk 0:00:02]} 43... g5 {[%clk 0:00:03.3]} 44. f4+ {[%clk
0:00:02.5]} 44... gxf4 {[%clk 0:00:03.9]} 45. Nxf4 {[%clk 0:00:03.4]} 45... h6
{[%clk 0:00:03.8]} 46. Ng6+ {[%clk 0:00:02.8]} 46... Kd5 {[%clk 0:00:04.1]} 47.
Nf4+ {[%clk 0:00:03.1]} 47... Ke5 {[%clk 0:00:04.3]} 48. Ng6+ {[%clk 0:00:03.1]}
48... Kd5 {[%clk 0:00:04.1]} 49. Nf4+ {[%clk 0:00:02.9]} 49... Kd6 {[%clk
0:00:03.9]} 50. a4 {[%clk 0:00:03.1]} 50... c4+ {[%clk 0:00:03.8]} 51. bxc4
{[%clk 0:00:03.3]} 51... bxa4 {[%clk 0:00:04.4]} 52. Kxd4 {[%clk 0:00:03.7]}
52... a3 {[%clk 0:00:04.9]} 53. c5+ {[%clk 0:00:02.1]} 53... Kc6 {[%clk
0:00:05.1]} 0-1

[Event "Late-Titled-Tuesday-Blitz-May-14-2024"]
[Site "Chess.com"]
[Date "2024.05.14"]
[Round "6"]
[White "Abund"]
[Black "Squirlolz"]
[Result "1-0"]
[WhiteElo "2776"]
[BlackElo "2567"]
[TimeControl "180+1"]
[EndTime "15:07:36 PDT"]
[Termination "Abund won on time"]

1. e4 {[%clk 0:03:00.2]} 1... e6 {[%clk 0:02:58.3]} 2. d4 {[%clk 0:03:00.2]}
2... d5 {[%clk 0:02:59.2]} 3. Nd2 {[%clk 0:03:01]} 3... c5 {[%clk 0:02:59.2]} 4.
Ngf3 {[%clk 0:03:01]} 4... cxd4 {[%clk 0:02:58]} 5. Nxd4 {[%clk 0:03:01.9]} 5...
Ne7 {[%clk 0:02:58.6]} 6. exd5 {[%clk 0:02:49.7]} 6... Nxd5 {[%clk 0:02:57.9]}
7. N2f3 {[%clk 0:02:49.3]} 7... Be7 {[%clk 0:02:54.4]} 8. Bd3 {[%clk 0:02:44.3]}
8... O-O {[%clk 0:02:51]} 9. O-O {[%clk 0:02:43.5]} 9... Nb4 {[%clk 0:02:48.9]}
10. Be2 {[%clk 0:02:39.6]} 10... N4c6 {[%clk 0:02:46.8]} 11. Be3 {[%clk
0:02:34.1]} 11... Bd7 {[%clk 0:02:45]} 12. Nb5 {[%clk 0:02:28.4]} 12... a6
{[%clk 0:02:29.5]} 13. Nd6 {[%clk 0:02:18.9]} 13... Qc7 {[%clk 0:02:29.7]} 14.
Nc4 {[%clk 0:02:18]} 14... b5 {[%clk 0:02:26.6]} 15. Nb6 {[%clk 0:02:15.2]}
15... Ra7 {[%clk 0:02:20.1]} 16. Nxd7 {[%clk 0:02:13.4]} 16... Nxd7 {[%clk
0:02:20.4]} 17. Bxa7 {[%clk 0:02:13]} 17... Qxa7 {[%clk 0:02:21.3]} 18. c3
{[%clk 0:02:09.4]} 18... b4 {[%clk 0:02:19.6]} 19. Qa4 {[%clk 0:02:05.7]} 19...
Ncb8 {[%clk 0:02:12.4]} 20. cxb4 {[%clk 0:02:04.3]} 20... Bf6 {[%clk 0:02:10.1]}
21. Rab1 {[%clk 0:01:59.2]} 21... Nb6 {[%clk 0:02:09.7]} 22. Qb3 {[%clk
0:01:57.1]} 22... Nd5 {[%clk 0:02:05.4]} 23. Rfc1 {[%clk 0:01:55.7]} 23... Qb6
{[%clk 0:02:04.6]} 24. a3 {[%clk 0:01:54.9]} 24... Nc6 {[%clk 0:02:04.9]} 25.
Qa4 {[%clk 0:01:53.2]} 25... Nd4 {[%clk 0:02:03.3]} 26. Nxd4 {[%clk 0:01:46.1]}
26... Bxd4 {[%clk 0:02:04.2]} 27. Qxa6 {[%clk 0:01:31.6]} 27... Bxf2+ {[%clk
0:02:03.6]} 28. Kh1 {[%clk 0:01:32.2]} 28... Qe3 {[%clk 0:01:58.7]} 29. Qd3
{[%clk 0:01:19.7]} 29... Qh6 {[%clk 0:01:55]} 30. Bf3 {[%clk 0:01:16.5]} 30...
Nf4 {[%clk 0:01:53.3]} 31. Qf1 {[%clk 0:01:11.4]} 31... Bg3 {[%clk 0:01:48.5]}
32. Qg1 {[%clk 0:01:01.3]} 32... Nd3 {[%clk 0:01:35.8]} 33. Rc2 {[%clk
0:01:00.1]} 33... g5 {[%clk 0:01:29.7]} 34. Rd1 {[%clk 0:00:57.3]} 34... Rd8
{[%clk 0:01:27.5]} 35. Rcd2 {[%clk 0:00:31.9]} 35... Rd4 {[%clk 0:01:27.3]} 36.
h3 {[%clk 0:00:22.9]} 36... Rh4 {[%clk 0:01:22.5]} 37. Qf1 {[%clk 0:00:16.7]}
37... Ne5 {[%clk 0:01:13.1]} 38. Kg1 {[%clk 0:00:13.5]} 38... g4 {[%clk
0:01:09.6]} 39. Bb7 {[%clk 0:00:10.2]} 39... Qe3+ {[%clk 0:00:58.8]} 40. Kh1
{[%clk 0:00:10.3]} 40... gxh3 {[%clk 0:00:59.5]} 41. gxh3 {[%clk 0:00:10.8]}
41... Bf4 {[%clk 0:00:42.5]} 42. Bg2 {[%clk 0:00:08.8]} 42... Qg3 {[%clk
0:00:35.8]} 43. Qg1 {[%clk 0:00:09]} 43... Nf3 {[%clk 0:00:25.2]} 44. Rd3 {[%clk
0:00:09.1]} 44... Nxg1 {[%clk 0:00:05.9]} 45. Rxg3+ {[%clk 0:00:08.6]} 45...
Bxg3 {[%clk 0:00:06.8]} 46. Kxg1 {[%clk 0:00:08.4]} 46... Be5 {[%clk 0:00:07.3]}
47. Rd2 {[%clk 0:00:06.5]} 47... Rd4 {[%clk 0:00:06]} 48. Rc2 {[%clk 0:00:04.8]}
48... Rd1+ {[%clk 0:00:04.3]} 49. Kf2 {[%clk 0:00:05]} 49... Rb1 {[%clk
0:00:05.2]} 50. b5 {[%clk 0:00:04.7]} 50... Rxb2 {[%clk 0:00:05.5]} 51. Rxb2
{[%clk 0:00:05.2]} 51... Bxb2 {[%clk 0:00:06.4]} 52. a4 {[%clk 0:00:05.3]} 52...
Bd4+ {[%clk 0:00:06.6]} 53. Ke2 {[%clk 0:00:05.3]} 53... Bb6 {[%clk 0:00:07.5]}
54. Kd3 {[%clk 0:00:05.6]} 54... Kf8 {[%clk 0:00:05.9]} 55. Kc4 {[%clk
0:00:06.1]} 55... Ke7 {[%clk 0:00:06.3]} 56. Kb4 {[%clk 0:00:06.7]} 56... Kd6
{[%clk 0:00:06.9]} 57. a5 {[%clk 0:00:07.3]} 57... Be3 {[%clk 0:00:07.2]} 58. b6
{[%clk 0:00:06.5]} 58... f5 {[%clk 0:00:02.7]} 59. Kb5 {[%clk 0:00:06.7]} 59...
e5 {[%clk 0:00:03]} 60. a6 {[%clk 0:00:07.3]} 60... e4 {[%clk 0:00:02.8]} 61. a7
{[%clk 0:00:07.6]} 1-0